[Event "GrandPrix_29.05"]
[Site "Chess.com"]
[Date "2020.05.29"]
[Round "2"]
[White "Herracek"]
[Black "tornikesanikidze"]
[Result "0-1"]
[WhiteElo "2162"]
[BlackElo "2252"]
[TimeControl "600+2"]
[EndTime "9:46:42 PDT"]
[Termination "tornikesanikidze won by resignation"]

1. c4 {[%clk 0:10:01.9]} 1... e6 {[%clk 0:10:00.3]} 2. Nc3 {[%clk 0:10:02.2]}
2... d5 {[%clk 0:10:01.2]} 3. d4 {[%clk 0:10:02.7]} 3... Bb4 {[%clk 0:10:01.8]}
4. Nf3 {[%clk 0:10:01.7]} 4... Nf6 {[%clk 0:10:01.7]} 5. Bg5 {[%clk 0:09:59.2]}
5... dxc4 {[%clk 0:10:01.4]} 6. e3 {[%clk 0:09:56.9]} 6... b5 {[%clk 0:10:00.7]}
7. Ne5 {[%clk 0:09:49.1]} 7... Bb7 {[%clk 0:09:59.5]} 8. Be2 {[%clk 0:09:49.7]}
8... h6 {[%clk 0:09:55.5]} 9. Bf3 {[%clk 0:09:50.2]} 9... c6 {[%clk 0:09:47]}
10. Bh4 {[%clk 0:09:49.6]} 10... g5 {[%clk 0:09:47.3]} 11. Bg3 {[%clk
0:09:50.7]} 11... Nd5 {[%clk 0:09:47.4]} 12. O-O {[%clk 0:09:43.6]} 12... Nd7
{[%clk 0:09:42.3]} 13. Ne4 {[%clk 0:09:38]} 13... Nxe5 {[%clk 0:09:14.4]} 14.
Bxe5 {[%clk 0:09:37.3]} 14... f6 {[%clk 0:09:13]} 15. Bh5+ {[%clk 0:09:36.9]}
15... Ke7 {[%clk 0:09:14.4]} 16. Nxf6 {[%clk 0:09:04]} 16... Nxf6 {[%clk
0:09:16.3]} 17. Bxf6+ {[%clk 0:09:04.6]} 17... Kxf6 {[%clk 0:09:18.2]} 18. Qf3+
{[%clk 0:09:05.9]} 18... Ke7 {[%clk 0:09:19.8]} 19. Qf7+ {[%clk 0:09:07.2]}
19... Kd6 {[%clk 0:09:21.1]} 20. e4 {[%clk 0:09:08.8]} 20... Qe7 {[%clk
0:09:14.8]} 21. Qf3 {[%clk 0:08:49.4]} 21... Qf8 {[%clk 0:08:52.7]} 22. Qe2
{[%clk 0:08:20.1]} 22... Kc7 {[%clk 0:08:52.1]} 23. a3 {[%clk 0:08:14.2]} 23...
Bd6 {[%clk 0:08:40.9]} 24. e5 {[%clk 0:08:11.2]} 24... Be7 {[%clk 0:08:41.3]}
25. Rfc1 {[%clk 0:08:06.8]} 25... Rd8 {[%clk 0:07:48.5]} 26. a4 {[%clk 0:07:51]}
26... Qf4 {[%clk 0:07:14]} 27. Bf3 {[%clk 0:06:37.4]} 27... Qxd4 {[%clk
0:06:40]} 28. axb5 {[%clk 0:06:04.4]} 28... cxb5 {[%clk 0:06:40.9]} 29. Bxb7
{[%clk 0:05:35]} 29... Kxb7 {[%clk 0:06:42.8]} 30. b3 {[%clk 0:05:36.4]} 30...
Rhf8 {[%clk 0:06:06.5]} 31. bxc4 {[%clk 0:05:22.6]} 31... Bc5 {[%clk 0:06:06.9]}
32. Kh1 {[%clk 0:04:35.1]} 32... Rxf2 {[%clk 0:05:54.9]} 33. Qh5 {[%clk
0:04:18.4]} 33... Qe4 {[%clk 0:05:55.9]} 34. Qh3 {[%clk 0:04:19.1]} 34... Rd3
{[%clk 0:05:45.6]} 0-1

[Event "GrandPrix_29.05"]
[Site "Chess.com"]
[Date "2020.05.29"]
[Round "2"]
[White "Inkalubo"]
[Black "nurgyulsalimova"]
[Result "0-1"]
[WhiteElo "1687"]
[BlackElo "2237"]
[TimeControl "600+2"]
[EndTime "9:46:52 PDT"]
[Termination "nurgyulsalimova won by resignation"]

1. Nf3 {[%clk 0:10:00.6]} 1... Nf6 {[%clk 0:09:58.3]} 2. g3 {[%clk 0:10:01.3]}
2... d5 {[%clk 0:09:59.1]} 3. Bg2 {[%clk 0:10:01.9]} 3... e6 {[%clk 0:10:00.4]}
4. d4 {[%clk 0:10:01.1]} 4... Be7 {[%clk 0:10:01.2]} 5. c4 {[%clk 0:10:01.2]}
5... O-O {[%clk 0:10:01.5]} 6. Qc2 {[%clk 0:10:01.7]} 6... a6 {[%clk 0:08:20.1]}
7. Nbd2 {[%clk 0:09:44.2]} 7... Nbd7 {[%clk 0:07:23.7]} 8. O-O {[%clk
0:09:34.3]} 8... c5 {[%clk 0:07:14]} 9. cxd5 {[%clk 0:09:12]} 9... exd5 {[%clk
0:07:06.2]} 10. dxc5 {[%clk 0:09:07.3]} 10... Nxc5 {[%clk 0:07:03]} 11. Nb3
{[%clk 0:08:24.9]} 11... Nce4 {[%clk 0:06:39.6]} 12. Nfd4 {[%clk 0:08:11.4]}
12... Bd7 {[%clk 0:06:31.6]} 13. Bf4 {[%clk 0:07:41.2]} 13... Rc8 {[%clk
0:06:30.5]} 14. Qd3 {[%clk 0:07:40.9]} 14... Qb6 {[%clk 0:05:41.5]} 15. Be3
{[%clk 0:06:49.1]} 15... Qb4 {[%clk 0:05:41]} 16. Rac1 {[%clk 0:06:31.8]} 16...
Rxc1 {[%clk 0:05:24.8]} 17. Rxc1 {[%clk 0:06:31.5]} 17... Rc8 {[%clk 0:05:26]}
18. Rxc8+ {[%clk 0:06:12.9]} 18... Bxc8 {[%clk 0:05:26.6]} 19. f3 {[%clk
0:05:45.1]} 19... Qe1+ {[%clk 0:05:22.3]} 20. Bf1 {[%clk 0:05:45.1]} 20... Bh3
{[%clk 0:05:17.2]} 21. Nd2 {[%clk 0:04:04.3]} 21... Nxd2 {[%clk 0:05:14.5]} 0-1

[Event "GrandPrix_29.05"]
[Site "Chess.com"]
[Date "2020.05.29"]
[Round "2"]
[White "Frozygul"]
[Black "ftorodent"]
[Result "1-0"]
[WhiteElo "2184"]
[BlackElo "1858"]
[TimeControl "600+2"]
[EndTime "9:46:58 PDT"]
[Termination "Frozygul won by resignation"]

1. d4 {[%clk 0:10:01.7]} 1... f5 {[%clk 0:08:53.3]} 2. e4 {[%clk 0:10:02.3]}
2... fxe4 {[%clk 0:08:53.2]} 3. Nc3 {[%clk 0:10:03.4]} 3... Nf6 {[%clk
0:08:49.6]} 4. Bg5 {[%clk 0:10:04.8]} 4... g6 {[%clk 0:08:50.4]} 5. f3 {[%clk
0:09:49.5]} 5... d5 {[%clk 0:08:47]} 6. fxe4 {[%clk 0:09:49.7]} 6... Nxe4 {[%clk
0:08:44.3]} 7. Nxe4 {[%clk 0:09:49.8]} 7... dxe4 {[%clk 0:08:45.4]} 8. Bb5+
{[%clk 0:09:51.7]} 8... c6 {[%clk 0:08:33.8]} 9. Bc4 {[%clk 0:09:52.4]} 9... Bg7
{[%clk 0:08:20.5]} 10. Ne2 {[%clk 0:09:51]} 10... Nd7 {[%clk 0:07:48.3]} 11. O-O
{[%clk 0:09:15.7]} 11... Nf6 {[%clk 0:07:47.5]} 12. Ng3 {[%clk 0:08:28.5]} 12...
Bg4 {[%clk 0:07:26.5]} 13. Bxf6 {[%clk 0:07:53.3]} 13... Bxd1 {[%clk 0:03:39.1]}
14. Bxg7 {[%clk 0:07:52.7]} 14... Bxc2 {[%clk 0:03:39.5]} 15. Bxh8 {[%clk
0:07:44.3]} 15... Qb6 {[%clk 0:03:37.3]} 16. Be6 {[%clk 0:06:56.7]} 16... c5
{[%clk 0:03:10.6]} 17. d5 {[%clk 0:06:56.3]} 17... c4+ {[%clk 0:02:52.6]} 18.
Kh1 {[%clk 0:06:57.1]} 18... Bd3 {[%clk 0:02:45.3]} 19. Bg7 {[%clk 0:06:06.3]}
1-0

[Event "GrandPrix_29.05"]
[Site "Chess.com"]
[Date "2020.05.29"]
[Round "2"]
[White "Tolya2"]
[Black "Armen_Barseghyan"]
[Result "0-1"]
[WhiteElo "1913"]
[BlackElo "2109"]
[TimeControl "600+2"]
[EndTime "9:47:02 PDT"]
[Termination "Armen_Barseghyan won by resignation"]

1. Nf3 {[%clk 0:10:01.9]} 1... c5 {[%clk 0:10:00.7]} 2. c4 {[%clk 0:10:00.8]}
2... Nf6 {[%clk 0:10:01.4]} 3. Nc3 {[%clk 0:10:00.8]} 3... g6 {[%clk 0:10:00.2]}
4. d4 {[%clk 0:10:01]} 4... cxd4 {[%clk 0:10:02.1]} 5. Nxd4 {[%clk 0:10:01.8]}
5... Nc6 {[%clk 0:10:02.7]} 6. g3 {[%clk 0:10:02.5]} 6... Bg7 {[%clk 0:10:03.4]}
7. Bg2 {[%clk 0:10:03.6]} 7... O-O {[%clk 0:10:04.5]} 8. O-O {[%clk 0:10:04.5]}
8... Qa5 {[%clk 0:10:05.2]} 9. Nb3 {[%clk 0:10:02]} 9... Qh5 {[%clk 0:10:05.1]}
10. e4 {[%clk 0:10:02.9]} 10... d6 {[%clk 0:10:05.6]} 11. Qxh5 {[%clk
0:10:02.4]} 11... Nxh5 {[%clk 0:10:07.5]} 12. Be3 {[%clk 0:09:57.3]} 12... Be6
{[%clk 0:09:53.8]} 13. c5 {[%clk 0:09:54.6]} 13... Bxb3 {[%clk 0:09:50.9]} 14.
axb3 {[%clk 0:09:54.5]} 14... dxc5 {[%clk 0:09:51.1]} 15. Bxc5 {[%clk
0:09:55.1]} 15... Rfd8 {[%clk 0:09:17.1]} 16. Rfd1 {[%clk 0:09:52.3]} 16... e6
{[%clk 0:09:10.4]} 17. f4 {[%clk 0:09:47.3]} 17... Bd4+ {[%clk 0:09:02.8]} 18.
Bxd4 {[%clk 0:09:44]} 18... Nxd4 {[%clk 0:09:04.7]} 19. e5 {[%clk 0:09:39.3]}
19... Nxb3 {[%clk 0:08:47.3]} 20. Rxd8+ {[%clk 0:09:34.3]} 20... Rxd8 {[%clk
0:08:45.8]} 21. Rxa7 {[%clk 0:09:34]} 21... Nc5 {[%clk 0:08:33.9]} 22. Bxb7
{[%clk 0:09:28.6]} 22... Rb8 {[%clk 0:08:28.6]} 23. Ra8 {[%clk 0:09:24.5]} 23...
Rxa8 {[%clk 0:08:17.2]} 24. Bxa8 {[%clk 0:09:24.9]} 24... f6 {[%clk 0:08:18.2]}
25. exf6 {[%clk 0:09:16.5]} 25... Nxf6 {[%clk 0:08:18.8]} 26. b4 {[%clk
0:09:15.6]} 26... Ncd7 {[%clk 0:08:17.6]} 27. Kf2 {[%clk 0:09:06.2]} 27... Nb6
{[%clk 0:08:17.1]} 28. h3 {[%clk 0:08:58.8]} 28... Kf7 {[%clk 0:08:17.4]} 29.
Ke3 {[%clk 0:08:58.2]} 29... Ke7 {[%clk 0:08:16.3]} 30. g4 {[%clk 0:08:58.7]}
30... h6 {[%clk 0:08:16.8]} 31. Kd4 {[%clk 0:08:57.8]} 31... g5 {[%clk
0:08:16.6]} 32. Ne2 {[%clk 0:08:41.6]} 32... Nfd7 {[%clk 0:08:12.3]} 33. Bc6
{[%clk 0:08:35.4]} 33... gxf4 {[%clk 0:08:12.1]} 34. Bxd7 {[%clk 0:08:32.5]}
34... Nxd7 {[%clk 0:08:11.9]} 35. Ke4 {[%clk 0:08:29.2]} 35... e5 {[%clk
0:08:11.7]} 36. b5 {[%clk 0:08:27.5]} 36... Ke6 {[%clk 0:08:06.2]} 37. h4 {[%clk
0:08:20.6]} 37... Nf6+ {[%clk 0:07:10]} 38. Kf3 {[%clk 0:08:19.9]} 38... Nd5
{[%clk 0:07:10.1]} 39. Ke4 {[%clk 0:08:06.5]} 39... Nf6+ {[%clk 0:07:04.1]} 40.
Kf3 {[%clk 0:08:05]} 40... Nd7 {[%clk 0:06:15.7]} 41. Nc3 {[%clk 0:07:52.2]}
41... Nb6 {[%clk 0:05:54.5]} 42. Ke4 {[%clk 0:07:22.2]} 42... Nc4 {[%clk
0:05:50.9]} 43. Na4 {[%clk 0:07:21]} 43... Nd6+ {[%clk 0:05:50.8]} 44. Kf3
{[%clk 0:07:21.5]} 44... Nxb5 {[%clk 0:05:51.6]} 45. Nc5+ {[%clk 0:07:14]} 45...
Kd5 {[%clk 0:05:51.6]} 46. Nd7 {[%clk 0:07:12.8]} 46... Nd4+ {[%clk 0:05:51.4]}
47. Kf2 {[%clk 0:07:12.3]} 47... e4 {[%clk 0:05:51.7]} 48. g5 {[%clk 0:07:11.3]}
48... hxg5 {[%clk 0:05:51.3]} 49. hxg5 {[%clk 0:07:10.6]} 49... e3+ {[%clk
0:05:51.6]} 50. Kg2 {[%clk 0:07:10.6]} 50... f3+ {[%clk 0:05:49.9]} 51. Kg3
{[%clk 0:07:08.9]} 51... Ke4 {[%clk 0:05:28.7]} 52. Nf6+ {[%clk 0:06:48.5]}
52... Kd3 {[%clk 0:05:21.1]} 53. Nd5 {[%clk 0:06:31]} 53... e2 {[%clk
0:05:18.2]} 54. Nf4+ {[%clk 0:06:10.8]} 54... Kd2 {[%clk 0:05:16]} 0-1

[Event "GrandPrix_29.05"]
[Site "Chess.com"]
[Date "2020.05.29"]
[Round "2"]
[White "nikosgal"]
[Black "ChessQueen"]
[Result "1-0"]
[WhiteElo "2545"]
[BlackElo "2376"]
[TimeControl "600+2"]
[EndTime "9:47:13 PDT"]
[Termination "nikosgal won by resignation"]

1. d4 {[%clk 0:10:01.9]} 1... Nf6 {[%clk 0:09:58.9]} 2. c4 {[%clk 0:09:57.3]}
2... e6 {[%clk 0:09:59.4]} 3. g3 {[%clk 0:09:57.4]} 3... d5 {[%clk 0:09:53.2]}
4. Bg2 {[%clk 0:09:57.7]} 4... dxc4 {[%clk 0:09:53.5]} 5. Nf3 {[%clk 0:09:58]}
5... a6 {[%clk 0:09:52.6]} 6. Ne5 {[%clk 0:09:57.8]} 6... c5 {[%clk 0:09:34.6]}
7. Be3 {[%clk 0:09:45.6]} 7... cxd4 {[%clk 0:09:20.8]} 8. Qxd4 {[%clk
0:09:37.1]} 8... Qxd4 {[%clk 0:08:51.1]} 9. Bxd4 {[%clk 0:09:36.5]} 9... Nbd7
{[%clk 0:07:56.1]} 10. Nxc4 {[%clk 0:09:34.3]} 10... Rb8 {[%clk 0:07:51]} 11.
Nc3 {[%clk 0:09:27.8]} 11... Bc5 {[%clk 0:07:31.1]} 12. Bxc5 {[%clk 0:08:35.5]}
12... Nxc5 {[%clk 0:07:31.5]} 13. b4 {[%clk 0:08:37.1]} 13... Ncd7 {[%clk
0:07:18.2]} 14. O-O {[%clk 0:08:35.5]} 14... Ke7 {[%clk 0:06:59.6]} 15. Rac1
{[%clk 0:08:33.8]} 15... b6 {[%clk 0:06:48.3]} 16. b5 {[%clk 0:07:51.1]} 16...
axb5 {[%clk 0:06:21]} 17. Nxb5 {[%clk 0:07:50.5]} 17... Bb7 {[%clk 0:06:06.6]}
18. Na7 {[%clk 0:07:43.7]} 18... Nd5 {[%clk 0:05:29.5]} 19. e4 {[%clk
0:07:42.5]} 19... Nb4 {[%clk 0:05:30.3]} 20. a3 {[%clk 0:07:28.2]} 20... Nd3
{[%clk 0:05:31.1]} 21. Rc3 {[%clk 0:07:11]} 21... N3c5 {[%clk 0:04:46.5]} 22.
Nxb6 {[%clk 0:06:34.6]} 22... Nxe4 {[%clk 0:04:40.2]} 23. Rc7 {[%clk 0:06:32.5]}
23... Rhd8 {[%clk 0:03:55.2]} 24. Rd1 {[%clk 0:06:26.2]} 24... Nd6 {[%clk
0:03:06.4]} 25. Bxb7 {[%clk 0:06:03]} 25... Rxb7 {[%clk 0:03:06.4]} 26. Nc6+
{[%clk 0:05:57]} 26... Ke8 {[%clk 0:03:03.1]} 27. Rxb7 {[%clk 0:05:52.9]} 1-0

[Event "GrandPrix_29.05"]
[Site "Chess.com"]
[Date "2020.05.29"]
[Round "2"]
[White "Carpe7Diem"]
[Black "NikolaGry"]
[Result "0-1"]
[WhiteElo "2130"]
[BlackElo "1995"]
[TimeControl "600+2"]
[EndTime "9:47:25 PDT"]
[Termination "NikolaGry won by resignation"]

1. c4 {[%clk 0:10:01.9]} 1... e5 {[%clk 0:10:00.1]} 2. Nc3 {[%clk 0:10:02.2]}
2... Nc6 {[%clk 0:10:00.3]} 3. g3 {[%clk 0:10:00.9]} 3... g6 {[%clk 0:10:00.6]}
4. Bg2 {[%clk 0:10:01.8]} 4... Bg7 {[%clk 0:10:00.7]} 5. e3 {[%clk 0:10:03.2]}
5... d6 {[%clk 0:10:01.3]} 6. Nge2 {[%clk 0:10:03.8]} 6... Nh6 {[%clk
0:10:01.6]} 7. d4 {[%clk 0:10:00.9]} 7... exd4 {[%clk 0:09:46.2]} 8. Nxd4 {[%clk
0:09:14.4]} 8... Nxd4 {[%clk 0:09:37]} 9. exd4 {[%clk 0:09:16.3]} 9... O-O
{[%clk 0:09:32.7]} 10. O-O {[%clk 0:09:02]} 10... Nf5 {[%clk 0:09:32.4]} 11. d5
{[%clk 0:07:50]} 11... Re8 {[%clk 0:09:04.3]} 12. Re1 {[%clk 0:07:33.3]} 12...
Rxe1+ {[%clk 0:08:08.4]} 13. Qxe1 {[%clk 0:07:33.8]} 13... Bd7 {[%clk
0:08:02.2]} 14. Bf4 {[%clk 0:07:21.8]} 14... a6 {[%clk 0:07:32.9]} 15. Qd2
{[%clk 0:06:59.5]} 15... b5 {[%clk 0:06:48.4]} 16. c5 {[%clk 0:06:40.2]} 16...
dxc5 {[%clk 0:05:54.4]} 17. d6 {[%clk 0:06:34.7]} 17... cxd6 {[%clk 0:05:37.8]}
18. Bxa8 {[%clk 0:06:23.7]} 18... Qxa8 {[%clk 0:05:35.6]} 19. Ne2 {[%clk
0:04:22]} 19... Qf3 {[%clk 0:05:15.8]} 0-1

[Event "GrandPrix_29.05"]
[Site "Chess.com"]
[Date "2020.05.29"]
[Round "2"]
[White "RitvarsReimanis"]
[Black "Ward-Tsh"]
[Result "1-0"]
[WhiteElo "2057"]
[BlackElo "2169"]
[TimeControl "600+2"]
[EndTime "9:47:29 PDT"]
[Termination "RitvarsReimanis won by resignation"]

1. d4 {[%clk 0:10:01.9]} 1... d5 {[%clk 0:08:46.9]} 2. Nf3 {[%clk 0:09:58.9]}
2... Nf6 {[%clk 0:08:46.6]} 3. c4 {[%clk 0:09:58.5]} 3... c6 {[%clk 0:08:47.2]}
4. e3 {[%clk 0:09:58.5]} 4... e6 {[%clk 0:08:47.5]} 5. Bd3 {[%clk 0:09:56.3]}
5... Nbd7 {[%clk 0:08:46.5]} 6. O-O {[%clk 0:09:56]} 6... dxc4 {[%clk
0:08:46.8]} 7. Bxc4 {[%clk 0:09:57]} 7... Bd6 {[%clk 0:08:48.7]} 8. Nc3 {[%clk
0:09:55.6]} 8... b5 {[%clk 0:08:49.1]} 9. Bd3 {[%clk 0:09:55.7]} 9... O-O {[%clk
0:08:31.4]} 10. a3 {[%clk 0:09:50.5]} 10... Bb7 {[%clk 0:08:30.6]} 11. Qe2
{[%clk 0:09:50]} 11... a6 {[%clk 0:08:28.2]} 12. e4 {[%clk 0:09:50.2]} 12... e5
{[%clk 0:08:27.3]} 13. dxe5 {[%clk 0:09:49]} 13... Nxe5 {[%clk 0:08:29.2]} 14.
Nxe5 {[%clk 0:09:50.6]} 14... Bxe5 {[%clk 0:08:31]} 15. f4 {[%clk 0:09:51]}
15... Bd4+ {[%clk 0:08:30.9]} 16. Kh1 {[%clk 0:09:52.4]} 16... c5 {[%clk
0:08:27.9]} 17. e5 {[%clk 0:09:53.5]} 17... Nd5 {[%clk 0:08:10.7]} 18. Ne4
{[%clk 0:09:53.1]} 18... Qh4 {[%clk 0:07:59.3]} 19. Bd2 {[%clk 0:09:45.4]} 19...
Rad8 {[%clk 0:07:54.2]} 20. Be1 {[%clk 0:09:45.7]} 20... Qe7 {[%clk 0:07:54.8]}
21. Qh5 {[%clk 0:09:26.7]} 21... g6 {[%clk 0:07:54.7]} 22. Qh6 {[%clk
0:09:27.9]} 22... f6 {[%clk 0:07:38.8]} 23. Bh4 {[%clk 0:09:24.1]} 23... Qg7
{[%clk 0:07:11.7]} 24. Nxf6+ {[%clk 0:09:04.6]} 24... Nxf6 {[%clk 0:06:57.4]}
25. Qxg7+ {[%clk 0:09:05.2]} 25... Kxg7 {[%clk 0:06:51.3]} 26. Bxf6+ {[%clk
0:09:06.1]} 26... Rxf6 {[%clk 0:06:52.5]} 27. exf6+ {[%clk 0:09:07.2]} 27...
Kxf6 {[%clk 0:06:54.4]} 28. Rab1 {[%clk 0:08:43.5]} 28... Re8 {[%clk 0:06:50]}
29. f5 {[%clk 0:08:00.8]} 29... g5 {[%clk 0:06:46.1]} 30. Rfe1 {[%clk
0:07:37.7]} 30... Rxe1+ {[%clk 0:06:44.5]} 31. Rxe1 {[%clk 0:07:39.6]} 31...
Bxb2 {[%clk 0:06:45.4]} 32. Re6+ {[%clk 0:07:40.4]} 32... Kf7 {[%clk 0:06:46]}
33. Rb6 {[%clk 0:07:39.8]} 33... Bd5 {[%clk 0:06:37]} 34. Rxa6 {[%clk 0:07:36]}
34... c4 {[%clk 0:06:37.8]} 35. Bc2 {[%clk 0:07:36.1]} 35... c3 {[%clk
0:06:19.8]} 36. Kg1 {[%clk 0:07:25.6]} 36... h5 {[%clk 0:06:14.8]} 37. g3 {[%clk
0:07:20.2]} 37... h4 {[%clk 0:05:38.4]} 38. gxh4 {[%clk 0:07:14]} 38... gxh4
{[%clk 0:05:40.3]} 39. Kf2 {[%clk 0:07:14.6]} 39... Bc1 {[%clk 0:05:34.7]} 40.
Ra5 {[%clk 0:05:21.5]} 40... Bc6 {[%clk 0:05:13.6]} 41. Bb3+ {[%clk 0:04:58.1]}
1-0

[Event "GrandPrix_29.05"]
[Site "Chess.com"]
[Date "2020.05.29"]
[Round "2"]
[White "Jan1401"]
[Black "DenLaz"]
[Result "0-1"]
[WhiteElo "2149"]
[BlackElo "2220"]
[TimeControl "600+2"]
[EndTime "9:47:58 PDT"]
[Termination "DenLaz won by resignation"]

1. e4 {[%clk 0:09:10.3]} 1... e5 {[%clk 0:09:57.7]} 2. Bc4 {[%clk 0:09:10.3]}
2... Bc5 {[%clk 0:09:46.7]} 3. Nc3 {[%clk 0:09:10.3]} 3... Nf6 {[%clk
0:09:45.3]} 4. d3 {[%clk 0:09:11]} 4... d6 {[%clk 0:09:45.4]} 5. f4 {[%clk
0:09:11.6]} 5... O-O {[%clk 0:09:44]} 6. Nf3 {[%clk 0:09:10.8]} 6... c6 {[%clk
0:09:42.8]} 7. fxe5 {[%clk 0:08:42]} 7... dxe5 {[%clk 0:09:41.5]} 8. Bg5 {[%clk
0:08:41.1]} 8... b5 {[%clk 0:09:36]} 9. Bb3 {[%clk 0:08:40.8]} 9... Qd6 {[%clk
0:09:35.8]} 10. Qd2 {[%clk 0:08:35]} 10... Nbd7 {[%clk 0:09:30.6]} 11. Be3
{[%clk 0:08:31.9]} 11... a5 {[%clk 0:09:23.7]} 12. a4 {[%clk 0:08:26]} 12... b4
{[%clk 0:09:22.5]} 13. Nd1 {[%clk 0:08:22.2]} 13... Ba6 {[%clk 0:09:19.3]} 14.
O-O {[%clk 0:08:09.9]} 14... Ng4 {[%clk 0:08:38.2]} 15. Kh1 {[%clk 0:07:49.3]}
15... Nxe3 {[%clk 0:08:06]} 16. Nxe3 {[%clk 0:07:49.6]} 16... Bxe3 {[%clk
0:08:07.2]} 17. Qxe3 {[%clk 0:07:50.6]} 17... Nc5 {[%clk 0:08:08.6]} 18. Ba2
{[%clk 0:06:59.2]} 18... b3 {[%clk 0:06:57.4]} 19. cxb3 {[%clk 0:06:32.3]} 19...
Rab8 {[%clk 0:06:41.7]} 20. Ng5 {[%clk 0:05:29.9]} 20... Rb4 {[%clk 0:06:22.3]}
21. Rad1 {[%clk 0:04:43.2]} 21... h6 {[%clk 0:06:06.2]} 22. Nf3 {[%clk
0:04:43.9]} 22... Ne6 {[%clk 0:06:06.2]} 23. Nh4 {[%clk 0:04:41.2]} 23... Nd4
{[%clk 0:06:00.4]} 24. Nf5 {[%clk 0:04:39.2]} 24... Nxf5 {[%clk 0:05:59.3]} 25.
Rxf5 {[%clk 0:04:39.7]} 25... c5 {[%clk 0:05:55.9]} 26. h3 {[%clk 0:04:36.7]}
26... Bc8 {[%clk 0:05:31]} 27. Rf2 {[%clk 0:04:28]} 27... Be6 {[%clk 0:05:31.5]}
28. Rc1 {[%clk 0:04:27.3]} 28... Rc8 {[%clk 0:05:30.1]} 29. Rfc2 {[%clk
0:04:28.2]} 29... Rd4 {[%clk 0:05:26.5]} 30. Rc3 {[%clk 0:04:29.1]} 30... Kh7
{[%clk 0:05:19.9]} 31. Qe2 {[%clk 0:04:29]} 31... f5 {[%clk 0:05:16.7]} 32. Qc2
{[%clk 0:04:24.5]} 32... fxe4 {[%clk 0:04:50]} 33. dxe4 {[%clk 0:04:22.2]} 33...
Rd2 {[%clk 0:04:50.2]} 34. Qb1 {[%clk 0:04:21.4]} 34... Rf8 {[%clk 0:04:46.1]}
35. Rf1 {[%clk 0:04:13.1]} 35... Rxf1+ {[%clk 0:04:42.7]} 36. Qxf1 {[%clk
0:04:13.9]} 36... Rd1 {[%clk 0:04:44.2]} 0-1

[Event "GrandPrix_29.05"]
[Site "Chess.com"]
[Date "2020.05.29"]
[Round "2"]
[White "KacperKacprzak"]
[Black "Velis23"]
[Result "0-1"]
[WhiteElo "2074"]
[BlackElo "2393"]
[TimeControl "600+2"]
[EndTime "9:48:17 PDT"]
[Termination "Velis23 won by resignation"]

1. e4 {[%clk 0:09:59.9]} 1... c6 {[%clk 0:09:59.9]} 2. d4 {[%clk 0:10:00.2]}
2... d5 {[%clk 0:09:58.8]} 3. e5 {[%clk 0:10:01.2]} 3... c5 {[%clk 0:09:58.9]}
4. dxc5 {[%clk 0:10:02.4]} 4... Nc6 {[%clk 0:09:59.1]} 5. Nf3 {[%clk 0:10:02.3]}
5... Bg4 {[%clk 0:09:58.8]} 6. Be2 {[%clk 0:09:42.1]} 6... e6 {[%clk 0:09:56.7]}
7. a3 {[%clk 0:09:42.2]} 7... Bxc5 {[%clk 0:09:54.6]} 8. b4 {[%clk 0:09:42]}
8... Bxf3 {[%clk 0:09:49.1]} 9. Bxf3 {[%clk 0:09:24.1]} 9... Bd4 {[%clk
0:09:47.7]} 10. Ra2 {[%clk 0:09:15.5]} 10... Bxe5 {[%clk 0:09:47]} 11. O-O
{[%clk 0:09:12.1]} 11... Nf6 {[%clk 0:09:39.1]} 12. Re1 {[%clk 0:08:59.7]} 12...
Bc7 {[%clk 0:09:34.9]} 13. Qe2 {[%clk 0:08:52]} 13... O-O {[%clk 0:09:23]} 14.
Bb2 {[%clk 0:08:14.7]} 14... a6 {[%clk 0:09:13.3]} 15. Nd2 {[%clk 0:08:12.9]}
15... Nd7 {[%clk 0:08:49.3]} 16. c4 {[%clk 0:07:58.7]} 16... Nde5 {[%clk
0:08:42]} 17. cxd5 {[%clk 0:07:55.4]} 17... Nxf3+ {[%clk 0:08:42.5]} 18. Nxf3
{[%clk 0:07:57.3]} 18... Qxd5 {[%clk 0:08:42.9]} 19. Ba1 {[%clk 0:07:47.4]}
19... Rad8 {[%clk 0:08:26.8]} 20. Rc2 {[%clk 0:07:37.4]} 20... Qd3 {[%clk
0:07:33.5]} 21. Qxd3 {[%clk 0:06:43.7]} 21... Rxd3 {[%clk 0:07:32]} 22. Nd4
{[%clk 0:06:40.4]} 22... Bxh2+ {[%clk 0:07:19.4]} 23. Kxh2 {[%clk 0:06:42.3]}
23... Nxd4 {[%clk 0:07:19.1]} 24. Rc7 {[%clk 0:06:43.4]} 24... b5 {[%clk
0:06:25.8]} 25. Re4 {[%clk 0:06:18.3]} 25... Nf5 {[%clk 0:06:11.5]} 26. g4
{[%clk 0:05:53.4]} 26... Nd6 {[%clk 0:05:59.4]} 27. Rxe6 {[%clk 0:05:38.5]}
27... Rxa3 {[%clk 0:05:37.9]} 28. Bd4 {[%clk 0:03:59.6]} 28... Ne8 {[%clk
0:05:32.2]} 29. Ree7 {[%clk 0:03:48.8]} 29... Nxc7 {[%clk 0:05:30.3]} 30. Rxc7
{[%clk 0:03:50.7]} 30... a5 {[%clk 0:05:13.5]} 31. Bc5 {[%clk 0:03:52.4]} 31...
Rb8 {[%clk 0:04:52.2]} 32. Ba7 {[%clk 0:03:45.7]} 32... Re8 {[%clk 0:04:49.6]}
33. bxa5 {[%clk 0:03:46.5]} 33... Rxa5 {[%clk 0:04:49.4]} 34. Bc5 {[%clk
0:03:48.4]} 34... Ra4 {[%clk 0:04:44.7]} 35. Kg3 {[%clk 0:03:47]} 35... Rc4
{[%clk 0:04:44.3]} 0-1